[Event "VI Sunway Sitges Open 2019"]
[Site "Sitges"]
[Date "2019.12.16"]
[Round "4.8"]
[White "Batsiashvili, Nino"]
[Black "Praggnanandhaa R"]
[Result "0-1"]
[ECO "E71"]
[WhiteElo "2447"]
[BlackElo "2586"]
[Annotator "ChessBase"]
[PlyCount "82"]
[EventDate "2019.12.13"]
[EventType "swiss"]
[EventCountry "ESP"]
[SourceTitle "playchess.com"]
[Source "ChessBase"]
[SourceQuality "1"]
[TimeControl "40/5400+30:1800+30"]

1. c4 {[%emt 0:03:14]} Nf6 {[%emt 0:00:08]} 2. Nc3 {[%emt 0:00:08]} g6 {[%emt 0:00:10]} 3. e4 {[%emt 0:01:04]} d6 {[%emt 0:00:25]} 4. d4 {[%emt 0:00:06]} Bg7 {[%emt 0:00:06]} 5. h3 {[%emt 0:00:07]} e5 {[%emt 0:00:30]} 6. d5 {[%emt 0:01:28]} a5 {[%emt 0:00:27]} 7. Be3 {[%emt 0:02:49]} Na6 {[%emt 0:01:15]} 8. g4 {[%emt 0:00:35]} Nd7 {[%emt 0:00:46]} 9. Nge2 {[%emt 0:02:47]} Bf6 {[%emt 0:01:59]} 10. Qd2 {[%emt 0:01:00]} h6 {[%emt 0:00:56]} 11. O-O-O {[%emt 0:12:23]} Bg5 {[%emt 0:05:25]} 12. f4 {[%emt 0:03:12]} exf4 {[%emt 0:00:46]} 13. Nxf4 {[%emt 0:00:02]} Ne5 {[%emt 0:06:19]} 14. Be2 {[%emt 0:01:22]} Qe7 {[%emt 0:11:57]} 15. Nb5 {[%emt 0:25:39]} b6 {[%emt 0:20:24]} 16. Rh2 {[%emt 0:12:33]} Bd7 {[%emt 0:04:38]} 17. Rdh1 {[%emt 0:02:18]} Bh4 {[%emt 0:14:32]} 18. Nd4 {[%emt 0:06:17]} Nc5 {[%emt 0:02:17]} 19. Qc2 {[%emt 0:00:06]} O-O-O {[%emt 0:01:42]} 20. Kb1 {[%emt 0:01:05]} Rde8 {[%emt 0:02:52]} 21. b3 {[%emt 0:03:37]} h5 {[%emt 0:04:49]} 22. gxh5 {[%emt 0:01:58]} g5 {[%emt 0:07:19]} 23. Ng2 {[%emt 0:06:58]} Bg3 {[%emt 0:01:55]} 24. Ne1 {[%emt 0:01:00]} Bxh2 {[%emt 0:00:00]} 25. Rxh2 {[%emt 0:01:02]} g4 26. hxg4 {[%emt 0:03:15]} Nxg4 {[%emt 0:00:52]} 27. Bxg4 {[%emt 0:00:00]} Bxg4 {[%emt 0:00:00]} 28. h6 {[%emt 0:00:44]} Nxe4 29. Ng2 {[%emt 0:03:13]} Qf6 {[%emt 0:04:28]} 30. Qd3 {[%emt 0:03:31]} Nc5 {[%emt 0:00:00]} 31. Qd2 {[%emt 0:01:03]} Bf5+ {[%emt 0:00:00]} 32. Nxf5 {[%emt 0:00:00]} Qxf5+ {[%emt 0:00:00]} 33. Qc2 {[%emt 0:01:56]} Qf1+ {[%emt 0:01:03]} 34. Kb2 {[%emt 0:01:16]} Nd3+ {[%emt 0:02:48]} 35. Ka3 {[%emt 0:02:25]} a4 {[%emt 0:02:50]} 36. Bd4 {[%emt 0:01:05]} axb3 {[%emt 0:00:20]} 37. axb3 {[%emt 0:00:18]} Kb7 {[%emt 0:00:21]} 38. b4 {[%emt 0:00:26]} Ra8+ {[%emt 0:00:13]} 39. Kb3 {[%emt 0:00:00]} Nc1+ {[%emt 0:00:05]} 40. Kc3 {[%emt 0:00:00]} Ra3+ {[%emt 0:00:00]} 41. Kd2 {[%emt 0:00:00]} Rd3+ {[%emt 0:00:11]} 0-1

[Event "VI Sunway Sitges Open 2019"]
[Site "Sitges"]
[Date "2019.12.16"]
[Round "4.14"]
[White "Gareyev, Timur"]
[Black "Firat, Burak"]
[Result "1-0"]
[ECO "A14"]
[WhiteElo "2598"]
[BlackElo "2475"]
[Annotator "ChessBase"]
[PlyCount "83"]
[EventDate "2019.12.13"]
[EventType "swiss"]
[EventCountry "ESP"]
[SourceTitle "playchess.com"]
[Source "ChessBase"]
[SourceQuality "1"]
[TimeControl "40/5400+30:1800+30"]

1. c4 {[%emt 0:00:10]} e6 {[%emt 0:00:37]} 2. Nf3 {[%emt 0:03:18]} Nf6 {[%emt 0:01:25]} 3. g3 {[%emt 0:00:11]} d5 {[%emt 0:00:12]} 4. Bg2 {[%emt 0:00:02]} Be7 {[%emt 0:00:24]} 5. b3 {[%emt 0:00:30]} c5 {[%emt 0:09:18]} 6. O-O {[%emt 0:01:31]} Nc6 {[%emt 0:03:01]} 7. cxd5 {[%emt 0:01:21]} Nxd5 {[%emt 0:00:57]} 8. Bb2 {[%emt 0:00:03]} Bf6 {[%emt 0:05:39]} 9. Bxf6 {[%emt 0:00:02]} Qxf6 {[%emt 0:00:13]} 10. Nc3 {[%emt 0:00:02]} O-O {[%emt 0:10:43]} 11. Ne4 {[%emt 0:01:14]} Qe7 {[%emt 0:02:03]} 12. d4 {[%emt 0:00:02]} cxd4 {[%emt 0:04:33]} 13. Nxd4 {[%emt 0:00:03]} Bd7 {[%emt 0:00:11]} 14. Qd2 {[%emt 0:20:52]} Rfd8 {[%emt 0:05:14]} 15. Rfd1 {[%emt 0:01:59]} Nxd4 {[%emt 0:05:58]} 16. Qxd4 {[%emt 0:00:03]} Bb5 {[%emt 0:00:17]} 17. Bf3 {[%emt 0:09:59]} Bc6 {[%emt 0:09:09]} 18. Rac1 {[%emt 0:11:15]} h6 {[%emt 0:12:46]} 19. Qc5 {[%emt 0:18:47]} Qxc5 {[%emt 0:03:10]} 20. Nxc5 {[%emt 0:00:32]} Rac8 {[%emt 0:00:39]} 21. Nd3 {[%emt 0:00:43]} Ne7 {[%emt 0:07:26]} 22. Kg2 {[%emt 0:05:32]} f6 {[%emt 0:04:21]} 23. Bxc6 {[%emt 0:07:02]} Rxc6 {[%emt 0:02:25]} 24. Rxc6 {[%emt 0:02:21]} Nxc6 {[%emt 0:00:04]} 25. Rc1 {[%emt 0:00:04]} Nd4 {[%emt 0:06:53]} 26. Rc7 {[%emt 0:06:04]} Nxe2 {[%emt 0:00:03]} 27. Nc5 {[%emt 0:00:12]} Nd4 {[%emt 0:00:53]} 28. Nxb7 {[%emt 0:00:23]} Rd5 {[%emt 0:01:28]} 29. b4 {[%emt 0:00:04]} g5 {[%emt 0:01:23]} 30. Nc5 {[%emt 0:01:14]} f5 {[%emt 0:01:15]} 31. Rxa7 {[%emt 0:06:22]} Nc6 {[%emt 0:00:01]} 32. Ra8+ {[%emt 0:00:23]} Kf7 {[%emt 0:00:02]} 33. a3 {[%emt 0:00:16]} g4 {[%emt 0:00:18]} 34. h3 {[%emt 0:02:09]} h5 {[%emt 0:00:15]} 35. Rh8 {[%emt 0:00:45]} gxh3+ {[%emt 0:02:32]} 36. Kxh3 {[%emt 0:00:02]} Ne5 {[%emt 0:00:53]} 37. Rh7+ {[%emt 0:00:20]} Kg6 {[%emt 0:00:48]} 38. Re7 {[%emt 0:00:05]} Ng4 {[%emt 0:00:45]} 39. Rxe6+ {[%emt 0:00:16]} Kf7 {[%emt 0:00:12]} 40. Re2 {[%emt 0:00:00]} Rd1 {[%emt 0:00:00]} 41. Kg2 {[%emt 0:04:30]} Ra1 {[%emt 0:00:15]} 42. a4 {[%emt 0:00:11]} 1-0

[Event "VI Sunway Sitges Open 2019"]
[Site "Sitges"]
[Date "2019.12.16"]
[Round "4.15"]
[White "Diaz Camallonga, Carles"]
[Black "Svane, Rasmus"]
[Result "1/2-1/2"]
[ECO "B11"]
[WhiteElo "2468"]
[BlackElo "2597"]
[Annotator "ChessBase"]
[PlyCount "108"]
[EventDate "2019.12.13"]
[EventType "swiss"]
[EventCountry "ESP"]
[SourceTitle "playchess.com"]
[Source "ChessBase"]
[SourceQuality "1"]
[TimeControl "40/5400+30:1800+30"]

1. e4 {[%emt 4:51:20]} c6 {[%emt 0:00:14]} 2. Nc3 {[%emt 0:00:19]} d5 {[%emt 0:00:07]} 3. Nf3 {[%emt 0:00:06]} Bg4 {[%emt 0:00:08]} 4. Be2 {[%emt 0:01:42]} e6 {[%emt 0:00:15]} 5. d4 {[%emt 0:01:15]} Nd7 {[%emt 0:01:10]} 6. O-O {[%emt 0:03:05]} Bd6 {[%emt 0:00:53]} 7. Re1 {[%emt 0:05:45]} Ne7 {[%emt 0:01:09]} 8. Bd3 {[%emt 0:06:02]} Qb6 {[%emt 0:12:36]} 9. e5 {[%emt 0:19:36]} Bb8 {[%emt 0:10:58]} 10. Na4 {[%emt 0:09:15]} Qa5 {[%emt 0:06:20]} 11. c3 {[%emt 0:15:15]} Qc7 {[%emt 0:11:21]} 12. h3 {[%emt 0:03:46]} Bh5 {[%emt 0:04:39]} 13. Bf4 {[%emt 0:00:28]} a5 {[%emt 0:02:30]} 14. b3 {[%emt 0:01:21]} Ba7 {[%emt 0:06:37]} 15. Rc1 {[%emt 0:00:48]} Rc8 {[%emt 0:11:23]} 16. g4 {[%emt 0:06:22]} Bg6 {[%emt 0:00:05]} 17. c4 {[%emt 0:00:10]} Nf8 {[%emt 0:09:15]} 18. c5 {[%emt 0:01:48]} Nd7 {[%emt 0:02:38]} 19. Bg3 {[%emt 0:00:53]} Qd8 {[%emt 0:01:07]} 20. Kg2 {[%emt 0:02:58]} Bxd3 {[%emt 0:01:31]} 21. Qxd3 {[%emt 0:00:05]} Ng6 {[%emt 0:01:18]} 22. Qe3 {[%emt 0:03:07]} h6 {[%emt 0:03:31]} 23. Qd3 {[%emt 0:02:36]} Bb8 {[%emt 0:01:00]} 24. Nb2 {[%emt 0:04:15]} Bc7 {[%emt 0:01:05]} 25. a3 {[%emt 0:01:03]} Qe7 {[%emt 0:01:42]} 26. Nd1 {[%emt 0:00:59]} b6 {[%emt 0:01:30]} 27. b4 {[%emt 0:01:53]} O-O {[%emt 0:01:28]} 28. Ne3 {[%emt 0:00:34]} axb4 {[%emt 0:00:47]} 29. axb4 {[%emt 0:00:04]} bxc5 {[%emt 0:00:22]} 30. bxc5 {[%emt 0:00:12]} Qe8 {[%emt 0:00:04]} 31. Ng1 {[%emt 0:04:28]} f6 {[%emt 0:00:59]} 32. f4 {[%emt 0:00:13]} fxe5 {[%emt 0:00:27]} 33. fxe5 {[%emt 0:00:05]} Bd8 {[%emt 0:00:33]} 34. Rf1 {[%emt 0:01:28]} Bg5 {[%emt 0:01:00]} 35. Rxf8+ {[%emt 0:00:34]} Ndxf8 {[%emt 0:00:06]} 36. Rf1 {[%emt 0:00:03]} Ra8 {[%emt 0:02:11]} 37. Rf2 {[%emt 0:00:42]} Nh4+ {[%emt 0:01:43]} 38. Kh2 {[%emt 0:01:27]} Qg6 {[%emt 0:02:58]} 39. Qxg6 {[%emt 0:02:20]} Nfxg6 {[%emt 0:00:02]} 40. Nc2 {[%emt 0:00:07]} Rb8 {[%emt 0:02:09]} 41. Nf3 {[%emt 0:05:51]} Nxf3+ {[%emt 0:07:28]} 42. Rxf3 {[%emt 0:00:04]} Nh4 {[%emt 0:02:46]} 43. Rf2 {[%emt 0:03:23]} Rb3 {[%emt 0:00:52]} 44. Ne1 {[%emt 0:03:23]} Re3 {[%emt 0:04:53]} 45. Ra2 {[%emt 0:03:47]} Ng6 {[%emt 0:06:43]} 46. Ng2 {[%emt 0:01:15]} Rf3 {[%emt 0:05:20]} 47. Ra6 {[%emt 0:05:04]} Ne7 {[%emt 0:00:07]} 48. Ra7 {[%emt 0:00:51]} Kf8 {[%emt 0:02:10]} 49. h4 {[%emt 0:02:15]} Bd2 {[%emt 0:00:44]} 50. h5 {[%emt 0:02:05]} Rd3 {[%emt 0:01:49]} 51. Bf2 {[%emt 0:01:00]} Bg5 {[%emt 0:01:14]} 52. Ne1 {[%emt 0:02:01]} Rd2 {[%emt 0:00:41]} 53. Kg3 {[%emt 0:00:13]} Bh4+ {[%emt 0:01:37]} 54. Kxh4 {[%emt 0:00:05]} Rxf2 {[%emt 0:00:05]} 1/2-1/2

[Event "VI Sunway Sitges Open 2019"]
[Site "Sitges"]
[Date "2019.12.16"]
[Round "4.16"]
[White "Santos Latasa, Jaime"]
[Black "Janik, Igor"]
[Result "1-0"]
[ECO "C78"]
[WhiteElo "2585"]
[BlackElo "2466"]
[Annotator "ChessBase"]
[PlyCount "105"]
[EventDate "2019.12.13"]
[EventType "swiss"]
[EventCountry "ESP"]
[SourceTitle "playchess.com"]
[Source "ChessBase"]
[SourceQuality "1"]
[TimeControl "40/5400+30:1800+30"]

1. e4 {[%emt 0:00:00]} e5 {[%emt 0:00:00]} 2. Nf3 {[%emt 0:00:00]} Nc6 {[%emt 0:00:02]} 3. Bb5 {[%emt 0:00:00]} a6 {[%emt 0:00:20]} 4. Ba4 {[%emt 0:00:00]} Nf6 {[%emt 0:00:14]} 5. O-O {[%emt 0:00:00]} b5 {[%emt 0:00:16]} 6. Bb3 {[%emt 0:00:05]} Bc5 {[%emt 0:00:14]} 7. a4 {[%emt 0:00:54]} Rb8 {[%emt 0:00:22]} 8. Nxe5 {[%emt 0:02:30]} Nxe5 {[%emt 0:00:19]} 9. d4 {[%emt 0:00:05]} Bxd4 {[%emt 0:00:30]} 10. Qxd4 {[%emt 0:00:34]} d6 {[%emt 0:00:07]} 11. Bf4 {[%emt 0:01:52]} O-O {[%emt 0:06:23]} 12. f3 {[%emt 0:01:22]} c5 {[%emt 0:06:45]} 13. Qd2 {[%emt 0:01:38]} c4 {[%emt 0:00:46]} 14. Ba2 {[%emt 0:01:21]} Qb6+ {[%emt 0:02:58]} 15. Be3 {[%emt 0:03:21]} Qc7 {[%emt 0:02:25]} 16. Nc3 {[%emt 0:01:45]} b4 {[%emt 0:14:30]} 17. Ne2 {[%emt 0:00:30]} Be6 {[%emt 0:04:31]} 18. Bd4 {[%emt 0:00:56]} Rfe8 {[%emt 0:10:36]} 19. Ng3 {[%emt 0:01:48]} Qe7 {[%emt 0:18:32]} 20. f4 {[%emt 0:18:16]} Red8 {[%emt 0:10:16]} 21. a5 {[%emt 0:02:24]} Ned7 {[%emt 0:05:16]} 22. Qe3 {[%emt 0:14:16]} Re8 {[%emt 0:06:09]} 23. Rae1 {[%emt 0:01:16]} c3 {[%emt 0:00:33]} 24. Bxe6 {[%emt 0:01:03]} Qxe6 {[%emt 0:00:02]} 25. bxc3 {[%emt 0:00:16]} bxc3 {[%emt 0:00:23]} 26. Qxc3 {[%emt 0:00:20]} Rec8 {[%emt 0:04:00]} 27. Qd3 {[%emt 0:00:23]} Rb5 {[%emt 0:00:56]} 28. Nf5 {[%emt 0:00:57]} Ne8 {[%emt 0:03:00]} 29. c3 {[%emt 0:04:16]} Rxa5 {[%emt 0:00:32]} 30. Qf3 {[%emt 0:00:28]} Ndf6 {[%emt 0:01:45]} 31. Re3 {[%emt 0:00:44]} d5 {[%emt 0:01:18]} 32. Qh3 {[%emt 0:00:34]} dxe4 {[%emt 0:01:01]} 33. Ne7+ {[%emt 0:00:20]} Qxe7 {[%emt 0:00:02]} 34. Qxc8 {[%emt 0:00:06]} Nd5 {[%emt 0:00:31]} 35. Re2 {[%emt 0:00:36]} f5 {[%emt 0:01:17]} 36. Rb2 {[%emt 0:02:42]} Ndc7 {[%emt 0:00:23]} 37. Bb6 {[%emt 0:01:06]} Rc5 {[%emt 0:00:20]} 38. Bxc5 {[%emt 0:00:22]} Qxc5+ {[%emt 0:00:01]} 39. Kh1 {[%emt 0:00:10]} Kf7 {[%emt 0:01:06]} 40. Qd7+ {[%emt 0:00:00]} Kg6 {[%emt 0:00:00]} 41. Qd4 {[%emt 0:02:08]} Qxd4 {[%emt 0:02:41]} 42. cxd4 {[%emt 0:00:17]} Nb5 {[%emt 0:00:41]} 43. Rb4 {[%emt 0:01:15]} Nec7 {[%emt 0:00:39]} 44. Ra1 {[%emt 0:00:09]} Kf6 {[%emt 0:01:19]} 45. g3 {[%emt 0:00:31]} Ke6 {[%emt 0:00:39]} 46. Rxa6+ {[%emt 0:00:27]} Nxa6 {[%emt 0:00:12]} 47. Rxb5 {[%emt 0:00:04]} Nc7 {[%emt 0:00:08]} 48. Re5+ {[%emt 0:00:06]} Kf6 {[%emt 0:00:08]} 49. d5 {[%emt 0:00:54]} Nb5 {[%emt 0:00:10]} 50. Kg2 {[%emt 0:00:07]} g6 {[%emt 0:00:35]} 51. Kf2 {[%emt 0:00:22]} Kf7 {[%emt 0:00:09]} 52. Ke3 {[%emt 0:00:51]} Na3 {[%emt 0:00:21]} 53. Kd4 {[%emt 0:00:28]} 1-0

[Event "VI Sunway Sitges Open 2019"]
[Site "Sitges"]
[Date "2019.12.16"]
[Round "4.18"]
[White "Wagner, Dennis"]
[Black "Haldorsen, Benjamin"]
[Result "1/2-1/2"]
[ECO "D02"]
[WhiteElo "2578"]
[BlackElo "2455"]
[Annotator "ChessBase"]
[PlyCount "75"]
[EventDate "2019.12.13"]
[EventType "swiss"]
[EventCountry "ESP"]
[SourceTitle "playchess.com"]
[Source "ChessBase"]
[SourceQuality "1"]
[TimeControl "40/5400+30:1800+30"]

1. d4 {[%emt 0:00:00]} d5 {[%emt 0:00:06]} 2. Nf3 {[%emt 0:00:00]} e6 {[%emt 0:01:52]} 3. Bf4 {[%emt 0:00:50]} Nf6 {[%emt 0:01:30]} 4. e3 {[%emt 0:00:40]} c5 {[%emt 0:02:31]} 5. c3 {[%emt 0:00:43]} Bd6 {[%emt 0:01:30]} 6. Bb5+ {[%emt 0:00:12]} Nc6 {[%emt 0:01:27]} 7. Bxd6 {[%emt 0:10:13]} Qxd6 {[%emt 0:00:03]} 8. Qa4 {[%emt 0:00:07]} Bd7 {[%emt 0:12:16]} 9. O-O {[%emt 0:06:54]} Nb8 {[%emt 0:08:25]} 10. c4 {[%emt 0:19:04]} cxd4 {[%emt 0:10:47]} 11. Nxd4 {[%emt 0:00:21]} O-O {[%emt 0:01:09]} 12. cxd5 {[%emt 0:00:33]} Nxd5 {[%emt 0:06:35]} 13. Na3 {[%emt 0:11:55]} a6 {[%emt 0:04:37]} 14. Bxd7 {[%emt 0:05:01]} Nxd7 {[%emt 0:02:24]} 15. Nc4 {[%emt 0:07:23]} Qc7 {[%emt 0:00:39]} 16. Qc2 {[%emt 0:05:53]} Rac8 {[%emt 0:10:21]} 17. Rac1 {[%emt 0:00:11]} b5 {[%emt 0:00:31]} 18. Na3 {[%emt 0:06:38]} Qb7 {[%emt 0:01:57]} 19. Qd2 {[%emt 0:00:49]} Ne5 {[%emt 0:04:29]} 20. Rxc8 {[%emt 0:01:46]} Rxc8 {[%emt 0:00:08]} 21. Rc1 {[%emt 0:00:08]} g6 {[%emt 0:06:53]} 22. h3 {[%emt 0:02:50]} b4 {[%emt 0:02:02]} 23. Rxc8+ {[%emt 0:01:23]} Qxc8 {[%emt 0:00:01]} 24. Qc2 {[%emt 0:02:37]} Qxc2 {[%emt 0:05:29]} 25. Naxc2 {[%emt 0:00:01]} Nd3 {[%emt 0:00:09]} 26. e4 {[%emt 0:01:17]} Ne7 {[%emt 0:00:10]} 27. a3 {[%emt 0:06:31]} a5 {[%emt 0:01:27]} 28. axb4 {[%emt 0:00:10]} axb4 {[%emt 0:00:25]} 29. b3 {[%emt 0:00:38]} e5 {[%emt 0:02:16]} 30. Nf3 {[%emt 0:00:12]} Nc6 {[%emt 0:01:27]} 31. Kf1 {[%emt 0:00:11]} f6 {[%emt 0:01:04]} 32. Nd2 {[%emt 0:00:10]} Kf7 {[%emt 0:00:35]} 33. Ke2 {[%emt 0:00:27]} Nc5 {[%emt 0:01:12]} 34. Ke3 {[%emt 0:00:45]} Ke6 {[%emt 0:01:32]} 35. g3 {[%emt 0:00:50]} Na5 {[%emt 0:03:50]} 36. Nxb4 {[%emt 0:00:09]} Ncxb3 {[%emt 0:00:14]} 37. Nxb3 {[%emt 0:00:06]} Nxb3 {[%emt 0:00:04]} 38. Nd3 {[%emt 0:00:20]} 1/2-1/2

[Event "VI Sunway Sitges Open 2019"]
[Site "Sitges"]
[Date "2019.12.16"]
[Round "4.19"]
[White "Lopez Martinez, Josep Manuel"]
[Black "Real De Azua, Ernesto"]
[Result "1/2-1/2"]
[ECO "D38"]
[WhiteElo "2561"]
[BlackElo "2450"]
[Annotator "ChessBase"]
[PlyCount "103"]
[EventDate "2019.12.13"]
[EventType "swiss"]
[EventCountry "ESP"]
[SourceTitle "playchess.com"]
[Source "ChessBase"]
[SourceQuality "1"]
[TimeControl "40/5400+30:1800+30"]

1. d4 {[%emt 0:00:00]} Nf6 {[%emt 0:01:09]} 2. c4 {[%emt 0:00:49]} e6 {[%emt 0:00:48]} 3. Nf3 {[%emt 0:01:11]} d5 {[%emt 0:00:08]} 4. Nc3 {[%emt 0:01:06]} Bb4 {[%emt 0:00:05]} 5. cxd5 {[%emt 0:00:47]} exd5 {[%emt 0:00:06]} 6. Bg5 {[%emt 0:00:32]} h6 {[%emt 0:00:10]} 7. Bh4 {[%emt 0:00:15]} O-O {[%emt 0:00:37]} 8. e3 {[%emt 0:00:32]} Bf5 {[%emt 0:00:05]} 9. Qb3 {[%emt 0:07:36]} Bxc3+ {[%emt 0:01:06]} 10. Qxc3 {[%emt 0:04:34]} Nbd7 {[%emt 0:11:00]} 11. Be2 {[%emt 0:04:56]} g5 {[%emt 0:08:16]} 12. Bg3 {[%emt 0:01:26]} c5 {[%emt 0:01:27]} 13. dxc5 {[%emt 0:08:09]} Ne4 {[%emt 0:00:16]} 14. Qa3 {[%emt 0:01:34]} Ndxc5 {[%emt 0:01:00]} 15. Nd4 {[%emt 0:01:42]} Bg6 {[%emt 0:00:46]} 16. f3 {[%emt 0:00:53]} Nxg3 {[%emt 0:01:05]} 17. hxg3 {[%emt 0:00:08]} Qe7 {[%emt 0:26:30]} 18. Rxh6 {[%emt 0:14:21]} Rfe8 {[%emt 0:00:40]} 19. Kf1 {[%emt 0:15:57]} Qxe3 {[%emt 0:19:49]} 20. Qxc5 {[%emt 0:17:33]} Rac8 {[%emt 0:00:05]} 21. Rxg6+ {[%emt 0:00:19]} fxg6 {[%emt 0:00:04]} 22. Qxd5+ {[%emt 0:00:21]} Kh8 {[%emt 0:01:36]} 23. Rd1 {[%emt 0:04:33]} Rc1 {[%emt 0:02:32]} 24. Qb3 {[%emt 0:00:34]} Rxd1+ {[%emt 0:03:39]} 25. Qxd1 {[%emt 0:00:02]} Rd8 {[%emt 0:00:06]} 26. Qc2 {[%emt 0:00:10]} Qxd4 {[%emt 0:04:07]} 27. Qxg6 {[%emt 0:00:43]} Qg7 {[%emt 0:10:24]} 28. Qh5+ {[%emt 0:07:15]} Kg8 {[%emt 0:00:00]} 29. Qg4 {[%emt 0:00:24]} Qf6 {[%emt 0:04:05]} 30. Qe4 {[%emt 0:00:52]} b6 {[%emt 0:01:00]} 31. Qc4+ {[%emt 0:05:18]} Kf8 {[%emt 0:00:29]} 32. Qc7 {[%emt 0:00:25]} a5 {[%emt 0:01:04]} 33. g4 {[%emt 0:00:46]} Re8 {[%emt 0:01:04]} 34. Qc2 {[%emt 0:00:31]} Qe5 {[%emt 0:00:37]} 35. a4 {[%emt 0:00:33]} Kg7 {[%emt 0:00:42]} 36. b3 {[%emt 0:00:30]} Re7 {[%emt 0:00:04]} 37. Qd2 {[%emt 0:00:21]} Qe3 {[%emt 0:01:05]} 38. Qc2 {[%emt 0:00:23]} Qe5 {[%emt 0:00:35]} 39. Qd2 {[%emt 0:00:08]} Kf6 {[%emt 0:00:17]} 40. g3 {[%emt 0:00:00]} Qxg3 {[%emt 0:00:00]} 41. Qd4+ {[%emt 0:00:49]} Qe5 {[%emt 0:07:41]} 42. Qxb6+ {[%emt 0:00:08]} Kg7 {[%emt 0:00:35]} 43. Qb5 {[%emt 0:02:10]} Qxb5 {[%emt 0:09:24]} 44. axb5 {[%emt 0:00:07]} Re3 {[%emt 0:00:15]} 45. Bc4 {[%emt 0:00:27]} Rxf3+ {[%emt 0:00:33]} 46. Ke2 {[%emt 0:00:02]} Rf6 {[%emt 0:00:11]} 47. Ke3 {[%emt 0:06:01]} Rd6 {[%emt 0:00:13]} 48. Ke4 {[%emt 0:00:27]} Kf6 {[%emt 0:00:15]} 49. Bd5 {[%emt 0:00:13]} Rb6 {[%emt 0:01:03]} 50. Bc4 {[%emt 0:01:01]} Rd6 {[%emt 0:02:44]} 51. Bd5 {[%emt 0:00:14]} Rb6 {[%emt 0:00:03]} 52. Bc4 {[%emt 0:00:21]} 1/2-1/2

[Event "VI Sunway Sitges Open 2019"]
[Site "Sitges"]
[Date "2019.12.16"]
[Round "4.20"]
[White "Alexiadis, Hristos"]
[Black "Dragnev, Valentin"]
[Result "1/2-1/2"]
[ECO "C47"]
[WhiteElo "2346"]
[BlackElo "2553"]
[Annotator "ChessBase"]
[PlyCount "52"]
[EventDate "2019.12.13"]
[EventType "swiss"]
[EventCountry "ESP"]
[SourceTitle "playchess.com"]
[Source "ChessBase"]
[SourceQuality "1"]
[TimeControl "40/5400+30:1800+30"]

1. e4 {[%emt 0:00:00]} e5 {[%emt 0:00:00]} 2. Nf3 {[%emt 0:00:05]} Nc6 {[%emt 0:00:00]} 3. Nc3 {[%emt 0:01:10]} Nf6 {[%emt 0:00:10]} 4. d4 {[%emt 0:00:15]} exd4 {[%emt 0:00:51]} 5. Nxd4 {[%emt 0:00:09]} Bb4 {[%emt 0:02:47]} 6. Nxc6 {[%emt 0:00:44]} bxc6 {[%emt 0:00:15]} 7. Bd3 {[%emt 0:00:12]} d5 {[%emt 0:00:30]} 8. exd5 {[%emt 0:00:39]} O-O {[%emt 0:00:05]} 9. O-O {[%emt 0:01:38]} cxd5 {[%emt 0:00:06]} 10. h3 {[%emt 0:00:13]} Rb8 {[%emt 0:27:56]} 11. Qf3 {[%emt 0:03:38]} Bb7 {[%emt 0:01:05]} 12. Bg5 {[%emt 0:02:31]} Be7 {[%emt 0:03:03]} 13. Rfe1 {[%emt 0:39:43]} h6 {[%emt 0:18:57]} 14. Bh4 {[%emt 0:19:11]} d4 {[%emt 0:23:01]} 15. Ne4 {[%emt 0:00:10]} Nxe4 {[%emt 0:00:15]} 16. Bxe7 {[%emt 0:00:07]} Qxe7 {[%emt 0:00:04]} 17. Bxe4 {[%emt 0:00:04]} Bxe4 {[%emt 0:00:04]} 18. Rxe4 {[%emt 0:00:04]} Qc5 {[%emt 0:01:16]} 19. b3 {[%emt 0:00:09]} Rfe8 {[%emt 0:01:56]} 20. Rae1 {[%emt 0:01:18]} Rxe4 {[%emt 0:00:29]} 21. Qxe4 {[%emt 0:00:06]} a5 {[%emt 0:01:40]} 22. Qd3 {[%emt 0:04:31]} Rd8 {[%emt 0:05:22]} 23. Rd1 {[%emt 0:03:01]} Rd6 {[%emt 0:00:13]} 24. Re1 {[%emt 0:00:29]} Rd8 {[%emt 0:00:50]} 25. Rd1 {[%emt 0:00:07]} Rd6 {[%emt 0:00:58]} 26. Re1 {[%emt 0:00:10]} Rd8 {[%emt 0:00:05]} 1/2-1/2

[Event "VI Sunway Sitges Open 2019"]
[Site "Sitges"]
[Date "2019.12.16"]
[Round "4.21"]
[White "Gukesh D"]
[Black "Rafiee, Makan"]
[Result "1-0"]
[ECO "C00"]
[WhiteElo "2547"]
[BlackElo "2335"]
[Annotator "ChessBase"]
[PlyCount "89"]
[EventDate "2019.12.13"]
[EventType "swiss"]
[EventCountry "ESP"]
[SourceTitle "playchess.com"]
[Source "ChessBase"]
[SourceQuality "1"]
[TimeControl "40/5400+30:1800+30"]

1. Nf3 {[%emt 0:00:00]} Nf6 {[%emt 0:00:00]} 2. g3 {[%emt 0:01:14]} d5 {[%emt 0:00:23]} 3. Bg2 {[%emt 0:00:08]} e6 {[%emt 0:00:09]} 4. O-O {[%emt 0:00:58]} Be7 {[%emt 0:00:12]} 5. d3 {[%emt 0:00:23]} O-O {[%emt 0:00:19]} 6. Nbd2 {[%emt 0:00:04]} c5 {[%emt 0:01:16]} 7. e4 {[%emt 0:00:06]} Nc6 {[%emt 0:00:41]} 8. Re1 {[%emt 0:00:05]} b5 {[%emt 0:00:49]} 9. e5 {[%emt 0:00:27]} Nd7 {[%emt 0:00:06]} 10. Nf1 {[%emt 0:00:07]} Qc7 {[%emt 0:00:48]} 11. Bf4 {[%emt 0:00:33]} Bb7 {[%emt 0:00:15]} 12. h4 {[%emt 0:05:36]} Rfc8 {[%emt 0:00:17]} 13. h5 {[%emt 0:07:44]} h6 {[%emt 0:00:25]} 14. Ne3 {[%emt 0:01:35]} Qd8 {[%emt 0:00:31]} 15. c4 {[%emt 0:10:10]} bxc4 {[%emt 0:31:41]} 16. dxc4 {[%emt 0:00:07]} d4 {[%emt 0:00:07]} 17. Ng4 {[%emt 0:01:16]} Bf8 {[%emt 0:00:17]} 18. Nd2 {[%emt 0:03:41]} Rcb8 {[%emt 0:01:45]} 19. Ne4 {[%emt 0:07:24]} Ne7 {[%emt 0:01:49]} 20. b4 {[%emt 0:21:27]} cxb4 {[%emt 0:10:26]} 21. Qxd4 {[%emt 0:00:34]} Nf5 {[%emt 0:00:47]} 22. Qxd7 {[%emt 0:02:52]} Qxd7 {[%emt 0:00:47]} 23. Nxh6+ gxh6 24. Nf6+ {[%emt 0:00:20]} Kg7 {[%emt 0:00:59]} 25. Nxd7 {[%emt 0:00:07]} Bxg2 {[%emt 0:00:36]} 26. Nxb8 {[%emt 0:01:58]} Bf3 {[%emt 0:15:50]} 27. Nd7 {[%emt 0:00:07]} Be7 {[%emt 0:02:45]} 28. Be3 {[%emt 0:08:49]} Rc8 {[%emt 0:02:42]} 29. Rac1 {[%emt 0:04:45]} Nxe3 {[%emt 0:04:34]} 30. fxe3 {[%emt 0:00:20]} Bc6 {[%emt 0:01:29]} 31. Nf6 {[%emt 0:02:16]} Bxf6 {[%emt 0:00:06]} 32. exf6+ {[%emt 0:00:08]} Kxf6 {[%emt 0:00:04]} 33. Kf2 {[%emt 0:03:25]} Rg8 {[%emt 0:06:37]} 34. Red1 {[%emt 0:07:11]} Rg5 {[%emt 0:02:46]} 35. Rd6 {[%emt 0:01:55]} Rc5 {[%emt 0:01:47]} 36. g4 {[%emt 0:01:43]} a5 {[%emt 0:03:45]} 37. Rd8 {[%emt 0:00:59]} Bd5 {[%emt 0:06:36]} 38. Rg8 {[%emt 0:04:17]} Be4 {[%emt 0:01:34]} 39. Ke2 {[%emt 0:02:48]} Ke7 {[%emt 0:01:10]} 40. Kf2 {[%emt 0:00:00]} Kf6 {[%emt 0:00:00]} 41. Ke2 {[%emt 0:15:14]} Ke7 {[%emt 0:01:06]} 42. Kd2 {[%emt 0:00:33]} Kf6 {[%emt 0:06:23]} 43. g5+ {[%emt 0:02:30]} hxg5 {[%emt 0:00:08]} 44. h6 {[%emt 0:01:13]} Bh7 {[%emt 0:08:20]} 45. Rf1+ {[%emt 0:01:06]} 1-0